bitfinex/quotes_BTCUSD_20250204
["timestamp","ask_amount","ask_price","bid_price","bid_amount"]
[1738705312873,0.07067833,96720.0,96719.0,0.0024212]
[1738705313123,0.023,96719.0,96714.0,0.00025253]
[1738705313336,0.023,96718.0,96717.0,0.155091]
[1738705313539,0.01832821,96718.0,96715.0,0.155093]
[1738705313711,0.01832821,96718.0,96717.0,0.155091]
[1738705314072,0.01832821,96718.0,96715.0,0.155094]
[1738705314274,0.01832821,96718.0,96716.0,0.155092]
[1738705315195,0.01266255,96724.0,96714.0,0.20704653]
[1738705315196,0.023,96716.0,96714.0,0.00025253]
[1738705315396,0.023,96716.0,96714.0,0.15634853]
[1738705315639,0.023,96716.0,96714.0,0.00025253]
[1738705316151,0.023,96716.0,96715.0,0.155094]
[1738705316496,0.02347071,96716.0,96715.0,0.155094]
[1738705316695,0.00047071,96716.0,96715.0,0.155094]
[1738705317734,0.00047071,96716.0,96715.0,0.25747906]
[1738705317933,0.00047071,96716.0,96715.0,0.25847906]
[1738705318195,0.06346856,96745.0,96744.0,0.155048]
[1738705318951,0.154989,96781.0,96758.0,0.155025]
[1738705319217,0.08742759,96784.0,96758.0,0.155025]
[1738705319342,0.00155003,96768.0,96758.0,0.155025]
[1738705319544,0.155011,96768.0,96758.0,0.155025]
[1738705319746,0.01287665,96773.0,96758.0,0.155025]
[1738705320388,0.01287665,96773.0,96758.0,0.15516609]
[1738705320941,0.08246785,96769.0,96758.0,0.00014109]
[1738705321080,0.155022,96760.0,96758.0,0.00014109]
[1738705321282,0.14268501,96759.0,96758.0,0.00014109]
[1738705321487,0.00022491,96759.0,96758.0,0.00114109]
[1738705321683,0.00022491,96759.0,96758.0,0.00290157]
[1738705321901,0.00022491,96759.0,96758.0,0.00390157]
[1738705322099,0.00022491,96759.0,96758.0,0.10628663]
[1738705322298,0.00022491,96759.0,96758.0,0.10528663]
[1738705322506,0.00022491,96759.0,96758.0,0.10628663]
[1738705322903,0.00022491,96759.0,96758.0,0.10528663]
[1738705323106,0.00022491,96759.0,96758.0,0.00290157]
[1738705323778,0.00022491,96759.0,96758.0,0.00014109]
[1738705324132,0.00022491,96759.0,96758.0,0.10252615]
[1738705324345,0.00022491,96759.0,96758.0,0.14952615]
[1738705324573,0.00022491,96759.0,96758.0,0.16292625]
[1738705324764,0.00022491,96759.0,96758.0,0.16192625]
[1738705324963,0.00022491,96759.0,96758.0,0.31292625]
[1738705325169,0.206572,96819.0,96783.0,0.154985]
[1738705325512,0.01232059,96813.0,96783.0,0.25737006]
[1738705325787,0.01232059,96813.0,96795.0,0.154966]
[1738705325993,0.00154952,96807.0,96794.0,0.154967]
[1738705326296,0.0757,96830.0,96774.0,0.21547272]
[1738705326297,0.00154965,96812.0,96782.0,0.10238506]
[1738705326492,0.00154956,96817.0,96794.0,0.206623]
[1738705326699,0.28904085,96818.0,96796.0,0.154964]
[1738705326700,0.02454956,96807.0,96796.0,0.154964]
[1738705326855,0.023,96806.0,96783.0,0.001]
[1738705327054,0.09529201,96808.0,96807.0,0.154947]
[1738705327300,0.08246785,96818.0,96807.0,0.154947]
[1738705327439,0.08246785,96818.0,96817.0,0.154931]
[1738705327657,0.07261785,96818.0,96817.0,0.154931]
[1738705328447,0.07261785,96818.0,96813.0,0.206583]
[1738705328448,0.00154921,96833.0,96810.0,0.20659]
[1738705328600,0.00154921,96833.0,96824.0,0.154919]
[1738705328787,0.00047129,96828.0,96826.0,0.154916]
[1738705328991,0.08246785,96827.0,96790.0,0.21547272]
[1738705329217,0.08242785,96827.0,96790.0,0.21547272]
[1738705329421,0.00154927,96826.0,96816.0,0.154932]
[1738705329618,0.00047129,96828.0,96816.0,0.206575]
[1738705329823,0.00047129,96828.0,96800.0,0.21547272]
[1738705330019,0.00047129,96828.0,96801.0,0.10238506]
[1738705330222,0.08246785,96817.0,96774.0,0.0473]
[1738705330493,0.08246785,96817.0,96794.0,0.206622]
[1738705330494,0.15495,96805.0,96794.0,0.206622]
[1738705330707,0.00154957,96804.0,96798.0,0.15496]
[1738705330904,0.00154957,96807.0,96783.0,0.206647]
[1738705331130,0.00154963,96814.0,96775.0,0.10238506]
[1738705331304,0.00154963,96814.0,96758.0,0.046]
[1738705331305,0.08246785,96805.0,96792.0,0.001]
[1738705331517,0.206605,96803.0,96792.0,0.001]
[1738705331722,0.00154972,96802.0,96778.0,0.206656]
[1738705331974,0.10238506,96801.0,96760.0,0.21547272]
[1738705332190,0.10238506,96801.0,96741.0,0.0492]
[1738705332191,0.08246785,96781.0,96741.0,0.0492]
[1738705332373,0.15654108,96780.0,96768.0,0.155008]
[1738705332568,0.154994,96778.0,96767.0,0.15501]
[1738705332744,0.154994,96778.0,96768.0,0.155009]
[1738705332945,0.154993,96778.0,96764.0,0.206686]
[1738705333148,0.00155008,96780.0,96764.0,0.206686]
[1738705333479,0.08246785,96785.0,96760.0,0.21547272]
[1738705333674,0.206589,96811.0,96793.0,0.154968]
[1738705333875,0.206589,96811.0,96770.0,0.21547272]
[1738705333876,0.01285251,96798.0,96791.0,0.154972]
[1738705334206,0.01285251,96798.0,96764.0,0.00014109]
[1738705334207,0.00154975,96794.0,96764.0,0.00014109]
[1738705334336,0.10393481,96794.0,96764.0,0.00014109]
[1738705334538,0.10393481,96794.0,96768.0,0.001]
[1738705334764,0.01285251,96798.0,96794.0,0.154967]
[1738705335098,0.082,96814.0,96750.0,0.21547272]
[1738705335099,0.08246785,96795.0,96750.0,0.21547272]
[1738705335262,0.154969,96793.0,96791.0,0.001]
[1738705335433,0.00154989,96792.0,96760.0,0.21547272]
[1738705335633,0.00154989,96792.0,96779.0,0.154991]
[1738705335829,0.00154989,96792.0,96775.0,0.154997]
[1738705336185,0.10238506,96791.0,96779.0,0.00014109]
[1738705336510,0.08246785,96785.0,96779.0,0.00014109]
[1738705336687,0.023,96781.0,96779.0,0.00014109]
[1738705336845,0.32742556,96780.0,96779.0,1e-08]
[1738705337028,0.17088506,96780.0,96779.0,1e-08]
[1738705337229,0.36275297,96780.0,96779.0,1e-08]
[1738705337471,0.29788506,96780.0,96779.0,1e-08]
[1738705337680,0.14788506,96780.0,96779.0,1e-08]
[1738705337875,0.0497,96801.0,96780.0,0.206654]
[1738705338072,0.10393504,96794.0,96791.0,0.001]
[1738705338275,0.10393504,96794.0,96779.0,1e-08]
[1738705338676,0.005,96780.0,96779.0,0.15499101]
[1738705338884,0.001,96780.0,96779.0,0.15499101]
[1738705339105,0.075,96809.0,96779.0,1e-08]
[1738705339277,0.002,96794.0,96793.0,0.154969]
[1738705339482,0.13236785,96838.0,96826.0,0.154917]
[1738705339483,0.08246785,96838.0,96826.0,0.154917]
[1738705339993,0.08246785,96838.0,96786.0,0.01]
[1738705340157,0.11346798,96837.0,96793.0,0.10238506]
[1738705340360,0.075,96854.0,96820.0,0.21547272]
[1738705340361,0.00154922,96849.0,96820.0,0.21547272]
[1738705340725,0.08246785,96853.0,96820.0,0.21547272]
[1738705340930,0.08246785,96853.0,96852.0,0.154875]
[1738705341137,0.08246785,96853.0,96849.0,0.206506]
[1738705341286,0.00047138,96853.0,96837.0,0.206532]
[1738705341488,0.00047138,96853.0,96848.0,0.154881]
[1738705341673,0.00047138,96853.0,96852.0,0.154875]
[1738705341873,0.00047138,96853.0,96851.0,0.154875]
[1738705342228,0.00047138,96853.0,96848.0,0.154881]
[1738705342460,0.00047138,96853.0,96844.0,0.206515]
[1738705342636,0.00047138,96853.0,96837.0,0.001]
[1738705342969,0.00047138,96853.0,96851.0,0.154876]
[1738705343591,0.08246785,96866.0,96830.0,0.21547272]
[1738705343795,0.08246785,96866.0,96803.0,0.046]
[1738705343796,0.11185623,96865.0,96820.0,0.21547272]
[1738705344007,0.10138506,96861.0,96836.0,0.1549]
[1738705344177,0.20649,96857.0,96851.0,0.001]
[1738705344335,0.154875,96852.0,96851.0,0.001]
[1738705344536,0.10238506,96852.0,96822.0,0.01018012]
[1738705344765,0.00014137,96866.0,96822.0,0.01018012]
[1738705344766,0.10238506,96851.0,96849.0,0.154879]
[1738705344964,0.00014137,96866.0,96840.0,0.21547272]
[1738705345281,0.10238506,96865.0,96840.0,0.21547272]
[1738705345498,0.00122439,96864.0,96845.0,0.206513]
[1738705345700,0.005,96852.0,96850.0,0.154878]
[1738705346042,0.004,96852.0,96850.0,0.154878]
[1738705346444,0.004,96852.0,96801.0,0.4134609]
[1738705346671,0.004,96852.0,96832.0,0.206542]
[1738705346843,0.004,96852.0,96840.0,0.21547272]
[1738705347045,0.004,96852.0,96850.0,0.154878]
[1738705347245,0.004,96852.0,96850.0,0.16505812]
[1738705348137,0.00014137,96866.0,96865.0,0.154854]
[1738705348338,0.00014137,96866.0,96851.0,0.004129]
[1738705348542,0.00014137,96866.0,96860.0,0.154861]
[1738705348747,0.00014137,96866.0,96864.0,0.154854]
[1738705348748,3.7e-07,96866.0,96864.0,0.154854]
[1738705348987,0.07890037,96866.0,96851.0,0.004129]
[1738705349199,0.00154849,96865.0,96851.0,0.004129]
[1738705349403,0.00154849,96865.0,96850.0,0.001]
[1738705349851,3.7e-07,96866.0,96850.0,0.001]
[1738705349852,3.7e-07,96866.0,96850.0,0.21647272]
[1738705350049,3.7e-07,96866.0,96865.0,0.154854]
[1738705350597,3.7e-07,96866.0,96865.0,0.2578731]
[1738705350819,3.7e-07,96866.0,96865.0,0.25723906]
[1738705352022,3.7e-07,96866.0,96865.0,0.155854]
[1738705352309,0.00022508,96866.0,96863.0,0.154856]
[1738705352530,0.00022508,96866.0,96851.0,0.206502]
[1738705352883,0.206475,96864.0,96840.0,0.21547272]
[1738705353081,0.103934,96863.0,96830.0,0.21547272]
[1738705353231,0.154865,96859.0,96850.0,0.37034972]
[1738705353433,0.154888,96845.0,96832.0,0.36145]
[1738705353678,0.154888,96845.0,96831.0,0.041303]
[1738705353679,0.00154905,96844.0,96838.0,0.154896]
[1738705353841,0.00154905,96844.0,96834.0,0.154903]
[1738705354059,0.154865,96859.0,96832.0,0.154907]
[1738705354263,0.00022508,96866.0,96849.0,0.21547272]
[1738705354464,0.00154876,96865.0,96849.0,0.21547272]
[1738705354668,0.08246785,96863.0,96857.0,0.154866]
[1738705354825,0.00154874,96865.0,96840.0,0.33104499]
[1738705355031,0.00022508,96866.0,96840.0,0.33104499]
[1738705355032,0.10393382,96864.0,96840.0,0.33104499]
[1738705355473,0.154864,96859.0,96850.0,0.154877]
[1738705355735,0.12981366,96858.0,96840.0,0.33104499]
[1738705355983,0.10393388,96858.0,96820.0,0.33104499]
[1738705356352,0.154891,96842.0,96820.0,0.33104499]
[1738705356527,0.154912,96829.0,96820.0,0.154926]
[1738705356726,0.00154925,96828.0,96822.0,0.041308]
[1738705356905,0.10238506,96828.0,96822.0,0.041308]
[1738705357105,0.206534,96837.0,96797.0,0.206617]
[1738705357106,0.10393443,96827.0,96797.0,0.206617]
[1738705357352,0.00154937,96827.0,96801.0,0.10262896]
[1738705357554,0.00154947,96836.0,96802.0,0.10302098]
[1738705357706,0.0802,96843.0,96802.0,0.10302098]
[1738705357707,0.10393431,96835.0,96802.0,0.10302098]
[1738705358160,0.154908,96832.0,96821.0,0.154924]
[1738705358337,0.15645826,96831.0,96821.0,0.154924]
[1738705358540,0.154911,96830.0,96802.0,0.10238506]
[1738705358881,0.00154933,96829.0,96801.0,0.00071528]
[1738705359093,0.10238506,96828.0,96802.0,0.206607]
[1738705359283,0.154921,96824.0,96802.0,0.206607]
[1738705359422,0.00154938,96823.0,96804.0,0.206603]
[1738705359622,0.10393444,96823.0,96801.0,0.00071528]
[1738705360081,0.206578,96816.0,96801.0,0.00071528]
[1738705360279,0.154954,96803.0,96801.0,0.00071528]
[1738705360481,0.10393473,96802.0,96801.0,0.00071528]
[1738705360684,0.18273473,96802.0,96801.0,0.00071528]
[1738705361248,0.18273491,96802.0,96801.0,0.00071528]
[1738705361467,0.18273491,96802.0,96779.0,0.000107]
[1738705361468,0.15499,96780.0,96779.0,0.000107]
[1738705361670,0.25737506,96780.0,96779.0,0.000248]
[1738705361881,0.32444217,96780.0,96779.0,0.000248]
[1738705362084,0.25737506,96780.0,96779.0,0.000248]
[1738705362494,0.27570016,96780.0,96779.0,0.000248]
[1738705363380,0.42770016,96780.0,96779.0,0.000248]
[1738705363586,0.45070016,96780.0,96779.0,0.000248]
[1738705363996,0.2332,96760.0,96745.0,0.0001071]
[1738705364290,0.25743006,96746.0,96745.0,0.0001071]
[1738705364514,0.43043006,96746.0,96745.0,0.0001071]
[1738705365076,0.173,96745.0,96704.0,0.0001068]
[1738705365249,0.10238506,96730.0,96704.0,0.0001068]
[1738705365710,0.00155124,96729.0,96704.0,0.0001068]
[1738705365915,0.10238506,96728.0,96704.0,0.0001068]
[1738705366070,0.00155106,96727.0,96704.0,0.0001068]
[1738705366287,0.10393613,96726.0,96714.0,0.00014514]
[1738705366748,0.06046492,96729.0,96714.0,0.00014514]
[1738705366921,0.00155102,96726.0,96720.0,0.155086]
[1738705367123,0.00155091,96728.0,96714.0,0.00014514]
[1738705367329,0.10393601,96727.0,96715.0,0.206793]
[1738705367550,0.03066969,96726.0,96714.0,0.00014514]
[1738705367747,0.0804,96724.0,96714.0,0.00014514]
[1738705367945,0.10393625,96723.0,96714.0,0.00214514]
[1738705368350,0.02065341,96720.0,96714.0,0.00214514]
[1738705368549,0.15509,96718.0,96714.0,0.00014514]
[1738705368835,0.2251031,96722.0,96714.0,0.01032526]
[1738705368836,0.0183251,96722.0,96714.0,0.01032526]
[1738705369038,0.08246785,96754.0,96715.0,0.10302376]
[1738705369237,0.08246785,96754.0,96751.0,0.155036]
[1738705369461,0.08246785,96754.0,96730.0,0.01018012]
[1738705369664,0.155052,96742.0,96740.0,0.33104499]
[1738705369840,0.10238506,96741.0,96740.0,0.33104499]
[1738705370088,0.03070753,96753.0,96752.0,0.155035]
[1738705370089,0.02915706,96753.0,96752.0,0.155035]
[1738705370501,0.00014157,96762.0,96751.0,0.001]
[1738705370711,0.10238506,96761.0,96754.0,0.155032]
[1738705370917,0.10238506,96761.0,96752.0,0.33104499]
[1738705371516,0.00155043,96760.0,96752.0,0.33104499]
[1738705371652,0.10238506,96759.0,96751.0,0.001]
[1738705372150,0.10238506,96759.0,96754.0,0.206707]
[1738705372353,0.10238506,96759.0,96752.0,0.155035]
[1738705372592,0.10238506,96759.0,96757.0,0.155027]
[1738705372999,0.10238506,96759.0,96752.0,0.206714]
[1738705373216,0.10238506,96759.0,96742.0,0.206735]
[1738705373422,0.00155042,96758.0,96752.0,0.155034]
[1738705373627,0.10238506,96757.0,96752.0,0.155034]
[1738705373907,0.00014157,96762.0,96752.0,0.01018012]
[1738705374110,0.10238506,96761.0,96759.0,0.155023]
[1738705374323,0.00014157,96762.0,96761.0,0.155021]
[1738705375780,0.00014157,96762.0,96761.0,0.15565841]
[1738705375980,0.10252663,96762.0,96742.0,0.001]
[1738705376343,0.10252663,96762.0,96740.0,0.33104499]
[1738705376344,0.10393553,96761.0,96740.0,0.33104499]
[1738705376561,0.10393553,96761.0,96759.0,0.155024]
[1738705376850,0.10238506,96761.0,96758.0,0.155024]
[1738705377003,0.10238506,96761.0,96753.0,0.206711]
[1738705377210,0.00155041,96760.0,96750.0,0.155038]
[1738705377544,0.10238506,96759.0,96740.0,0.33104499]
[1738705377752,0.00155048,96758.0,96754.0,0.155031]
[1738705377903,0.10238506,96759.0,96757.0,0.155027]
[1738705378516,0.00036628,96762.0,96740.0,0.33104499]
[1738705378715,0.00036628,96762.0,96761.0,0.155021]
[1738705378716,0.10275134,96762.0,96761.0,0.155021]
[1738705379083,0.00036628,96762.0,96761.0,0.155021]
[1738705379835,0.00036628,96762.0,96761.0,0.156021]
[1738705380472,0.00036628,96762.0,96761.0,0.157021]
[1738705380677,0.00036628,96762.0,96761.0,0.156021]
[1738705381215,0.00036628,96762.0,96761.0,0.15765852]
[1738705381340,0.00036628,96762.0,96761.0,0.26004358]
[1738705381549,0.00036628,96762.0,96761.0,0.25940606]
[1738705381773,0.00036628,96762.0,96761.0,0.157021]
[1738705382207,0.00036628,96762.0,96761.0,0.26004327]
[1738705382525,0.00036628,96762.0,96761.0,0.25740606]
[1738705382712,2.8e-07,96762.0,96761.0,0.40840606]
[1738705382910,2.8e-07,96762.0,96761.0,0.40740606]
[1738705383289,0.06346813,96789.0,96788.0,0.154977]
[1738705383499,0.06346813,96789.0,96788.0,0.16515712]
[1738705383745,0.0472,96820.0,96797.0,0.154963]
[1738705383976,0.08401752,96817.0,96815.0,0.154933]
[1738705384159,0.18485291,96817.0,96815.0,0.154933]
[1738705384308,0.10285714,96817.0,96815.0,0.154933]
[1738705384510,0.00047208,96817.0,96815.0,0.15482847]
[1738705384698,0.00047208,96817.0,96805.0,0.01018012]
[1738705384899,0.00047208,96817.0,96809.0,0.154942]
[1738705385172,0.15494,96812.0,96801.0,0.154956]
[1738705385341,0.10393467,96811.0,96801.0,0.154956]
[1738705385551,0.10393467,96811.0,96808.0,0.154945]
[1738705385754,0.10238506,96811.0,96794.0,0.01018012]
[1738705385956,0.15649156,96810.0,96809.0,0.001]
[1738705386108,0.10393462,96810.0,96809.0,0.001]
[1738705386312,0.10393462,96810.0,96781.0,0.01018012]
[1738705386516,0.10238506,96809.0,96801.0,0.001]
[1738705386717,0.154954,96803.0,96801.0,0.001]
[1738705386973,0.154959,96800.0,96789.0,0.154976]
[1738705387175,0.10393487,96799.0,96790.0,0.154974]
[1738705387319,0.10393487,96799.0,96781.0,0.01018012]
[1738705387520,0.10393487,96799.0,96790.0,0.154974]
[1738705387725,0.10393487,96799.0,96781.0,0.01018012]
[1738705387726,0.10393487,96799.0,96794.0,0.154967]
[1738705387926,0.10393487,96799.0,96781.0,0.01018012]
[1738705387927,0.08293993,96817.0,96805.0,0.15495]
[1738705388173,0.08293993,96817.0,96811.0,0.154941]
[1738705388174,0.00022471,96812.0,96811.0,0.154941]
[1738705389343,0.00222471,96812.0,96811.0,0.154941]
[1738705389543,0.00222471,96812.0,96802.0,0.01018012]
[1738705389782,0.00222471,96812.0,96810.0,0.154941]
[1738705389979,0.00422471,96812.0,96810.0,0.154941]
[1738705390189,0.00418471,96812.0,96802.0,0.21678512]
[1738705390394,0.00418471,96812.0,96658.0,0.9]
[1738705390395,0.08246785,96810.0,96780.0,0.01018012]
[1738705390596,0.08246785,96795.0,96766.0,0.206682]
[1738705390805,0.154974,96791.0,96777.0,0.154994]
[1738705391057,0.154974,96791.0,96751.0,0.206716]
[1738705391058,0.206635,96789.0,96759.0,0.206697]
[1738705391258,0.10393527,96788.0,96736.0,0.05900529]
[1738705391499,0.206645,96784.0,96756.0,0.155028]
[1738705391758,0.10393533,96783.0,96744.0,0.206729]
[1738705391934,0.02056304,96779.0,96744.0,0.206729]
[1738705392258,0.155038,96751.0,96740.0,0.155053]
[1738705392389,0.00155053,96750.0,96717.0,0.0468]
[1738705392584,0.10238506,96749.0,96720.0,0.206782]
[1738705392889,0.155052,96742.0,96717.0,0.01235051]
[1738705393041,0.10393579,96741.0,96717.0,0.01235051]
[1738705393215,0.155074,96728.0,96717.0,0.01235051]
[1738705393413,0.00155085,96727.0,96717.0,0.00014157]
[1738705393619,0.10238506,96726.0,96717.0,0.00014157]
[1738705393819,0.155081,96724.0,96717.0,0.00014157]
[1738705394021,0.00155101,96723.0,96717.0,0.00014157]
[1738705394220,0.01225395,96734.0,96717.0,0.00014157]
[1738705394466,0.103936,96733.0,96722.0,0.155083]
[1738705394639,0.15507,96731.0,96717.0,0.00014157]
[1738705394923,0.10393598,96730.0,96717.0,0.00014157]
[1738705395121,0.155072,96729.0,96718.0,0.15509]
[1738705395362,0.00155093,96728.0,96717.0,0.00014157]
[1738705395578,0.00155093,96728.0,96717.0,0.00114157]
[1738705395750,0.00155093,96728.0,96717.0,0.20792957]
[1738705395953,0.10238506,96727.0,96717.0,0.00014157]
[1738705396153,0.15508,96724.0,96717.0,0.00114157]
[1738705396445,0.10393608,96723.0,96717.0,0.00014157]
[1738705396650,0.155089,96719.0,96717.0,0.00014157]
[1738705396779,0.10393622,96718.0,96717.0,0.00114157]
[1738705396990,0.10393622,96718.0,96717.0,0.00014157]
[1738705397635,0.00155116,96718.0,96717.0,0.00014157]
[1738705397836,0.01230188,96727.0,96726.0,0.155077]
[1738705397973,0.0818,96756.0,96717.0,0.15523257]
[1738705397974,0.00155078,96744.0,96717.0,0.00014157]
[1738705398172,0.0498,96758.0,96717.0,0.00014157]
[1738705398173,0.0498,96758.0,96757.0,0.155027]
[1738705398391,0.02935891,96759.0,96757.0,0.155027]
[1738705398632,0.02935891,96759.0,96720.0,0.33104499]
[1738705398800,0.155036,96752.0,96715.0,0.08246785]
[1738705399005,0.10393577,96751.0,96726.0,0.001]
[1738705399214,0.206734,96743.0,96726.0,0.001]
[1738705399543,0.10393588,96742.0,96731.0,0.155068]
[1738705399695,0.25445034,96750.0,96727.0,0.413534]
[1738705399897,0.10393578,96749.0,96726.0,0.00014157]
[1738705400121,0.04773034,96750.0,96749.0,0.15504]
[1738705400482,0.04773034,96750.0,96748.0,0.155041]
[1738705400922,0.10238506,96749.0,96727.0,0.206767]
[1738705401129,0.00155066,96748.0,96742.0,0.15505]
[1738705401387,0.00155066,96748.0,96726.0,0.00014157]
[1738705401388,0.155047,96745.0,96726.0,0.00014157]
[1738705401669,0.10393581,96744.0,96726.0,0.00014157]
[1738705401788,0.10393581,96744.0,96733.0,0.155064]
[1738705401991,0.10393581,96744.0,96727.0,0.206767]
[1738705402243,0.06064464,96743.0,96726.0,0.00014157]
[1738705402437,0.21569564,96743.0,96742.0,0.001]
[1738705402614,0.06064464,96743.0,96726.0,0.20690957]
[1738705402798,0.10238506,96742.0,96735.0,0.155061]
[1738705403409,0.155066,96733.0,96726.0,0.00014157]
[1738705403608,0.10238506,96732.0,96731.0,0.155069]
[1738705403809,0.04773034,96741.0,96727.0,0.206767]
[1738705404014,0.04773034,96741.0,96740.0,0.155054]
[1738705404221,0.04773034,96741.0,96726.0,0.00014157]
[1738705404428,0.0015507,96740.0,96735.0,0.155061]
[1738705404814,0.10238506,96739.0,96734.0,0.155064]
[1738705404965,0.10238506,96739.0,96729.0,0.206761]
[1738705405302,0.10238506,96739.0,96726.0,0.00014157]
[1738705405303,0.12075649,96739.0,96726.0,0.00014157]
[1738705405676,0.12075649,96739.0,96727.0,0.206767]
[1738705406040,0.00155077,96738.0,96730.0,0.206759]
[1738705406403,0.04929886,96738.0,96727.0,0.206767]
[1738705406622,0.04774809,96738.0,96736.0,0.15506]
[1738705407579,0.01837143,96737.0,96736.0,0.18330179]
[1738705407797,0.01837143,96737.0,96736.0,0.28568673]
[1738705408036,0.02937533,96756.0,96736.0,0.28568673]
[1738705408037,0.02937533,96756.0,96737.0,0.15]
[1738705408223,0.02937533,96756.0,96747.0,0.155043]
[1738705408581,0.08742759,96757.0,96748.0,0.02760369]
[1738705408774,0.06842759,96757.0,96748.0,0.18264369]
[1738705408987,0.06842759,96764.0,96748.0,0.02760369]
[1738705409635,0.06842759,96764.0,96721.0,0.02047984]
[1738705409636,0.206703,96758.0,96747.0,0.001]
[1738705409806,0.155041,96749.0,96747.0,0.001]
[1738705409962,0.10393577,96748.0,96747.0,0.001]
[1738705410586,0.10393578,96748.0,96747.0,0.001]
[1738705410945,0.10393569,96748.0,96747.0,0.001]
[1738705411425,0.10493569,96748.0,96736.0,0.053248]
[1738705411655,0.155056,96740.0,96736.0,0.053248]
[1738705411827,0.155059,96738.0,96736.0,0.053248]
[1738705411975,0.15660967,96738.0,96736.0,0.053248]
[1738705412406,0.10238506,96747.0,96736.0,0.053248]
[1738705412694,0.206689,96764.0,96736.0,0.053248]
[1738705412917,0.206689,96764.0,96737.0,0.10302296]
[1738705412918,0.155017,96764.0,96737.0,0.10302296]
[1738705413119,0.01154672,96766.0,96737.0,0.10302296]
[1738705413519,0.01154672,96766.0,96760.0,0.155021]
[1738705413720,0.00155009,96782.0,96755.0,0.02760369]
[1738705413924,0.00155009,96782.0,96741.0,0.206736]
[1738705413925,0.206684,96766.0,96741.0,0.206736]
[1738705414096,0.00022471,96784.0,96737.0,0.10238506]
[1738705414097,0.00155035,96765.0,96737.0,0.206746]
[1738705414297,0.10260977,96762.0,96730.0,0.33104499]
[1738705414498,0.0015504,96761.0,96736.0,0.15563306]
[1738705414699,0.00155037,96760.0,96744.0,0.155046]
[1738705414904,0.00155037,96759.0,96737.0,0.02760369]
[1738705415108,0.10238506,96758.0,96736.0,0.05338957]
[1738705415311,0.155059,96738.0,96736.0,0.05338957]
[1738705415510,0.00155062,96737.0,96736.0,0.05438957]
[1738705415717,0.00155062,96737.0,96736.0,0.05338957]
[1738705415718,0.10238506,96737.0,96736.0,0.05338957]
[1738705417019,0.10393591,96737.0,96736.0,0.05338957]
[1738705418064,0.17293591,96737.0,96736.0,0.05338957]
[1738705418253,0.40303591,96737.0,96736.0,0.03242327]
[1738705418447,0.40648506,96737.0,96736.0,0.03242327]
[1738705418643,0.40048506,96737.0,96736.0,0.03242327]
[1738705418824,0.40148506,96737.0,96736.0,0.03242327]
[1738705419024,0.40148506,96737.0,96717.0,0.000107]
[1738705419025,0.15509,96718.0,96717.0,0.000107]
[1738705419261,0.25747506,96718.0,96717.0,0.0001412]
[1738705419626,0.40747506,96718.0,96717.0,0.0001412]
[1738705419830,0.43047506,96718.0,96717.0,0.0001412]
[1738705420456,0.51237506,96718.0,96717.0,0.0001412]
[1738705420656,0.60696877,96718.0,96717.0,0.0001412]
[1738705420856,0.62542357,96718.0,96717.0,0.0001412]
[1738705421256,0.62542357,96718.0,96717.0,1e-08]
[1738705421257,0.63942357,96718.0,96717.0,1e-08]
[1738705421454,0.63942357,96718.0,96670.0,0.155165]
[1738705421455,0.155146,96683.0,96662.0,0.000107]
[1738705421660,0.42594566,96683.0,96662.0,0.000107]
[1738705421900,0.42594566,96683.0,96665.0,0.155174]
[1738705422121,0.42594566,96683.0,96662.0,0.000107]
[1738705422323,0.3990562,96683.0,96662.0,0.000107]
[1738705422869,0.39919753,96683.0,96662.0,0.000107]
[1738705423515,0.39919753,96683.0,96650.0,0.0005]
[1738705423516,0.01,96657.0,96649.0,0.0071802]
[1738705423713,0.155234,96628.0,96627.0,0.00911495]
[1738705424091,0.02022296,96630.0,96627.0,0.00911495]
[1738705424334,0.155233,96629.0,96627.0,0.00911495]
[1738705424539,0.02027878,96634.0,96627.0,0.00911495]
[1738705424758,0.206906,96663.0,96627.0,0.00911495]
[1738705424759,0.00155246,96633.0,96627.0,0.00911495]
[1738705424966,0.08246785,96651.0,96627.0,0.00911495]
[1738705425376,0.01841516,96628.0,96627.0,0.00911495]
[1738705426486,0.001,96629.0,96627.0,0.00911495]
[1738705426863,0.08246785,96641.0,96627.0,0.00911495]
[1738705427258,0.10238506,96640.0,96627.0,0.01011495]
[1738705427457,0.155216,96639.0,96627.0,0.01011495]
[1738705427625,0.10238506,96638.0,96627.0,0.00911495]
[1738705427821,0.10238506,96638.0,96627.0,0.01011495]
[1738705428003,0.01156501,96652.0,96627.0,0.01011495]
[1738705428202,0.0015523,96651.0,96627.0,0.01011495]
[1738705428411,0.08246785,96641.0,96640.0,0.155215]
[1738705428703,0.08246785,96641.0,96627.0,0.01102558]
[1738705428906,0.08246785,96652.0,96627.0,0.01002558]
[1738705429119,0.10238506,96651.0,96627.0,0.01002558]
[1738705429350,0.00155222,96650.0,96627.0,0.01002558]
[1738705429528,0.10238506,96649.0,96645.0,0.155206]
[1738705429731,0.10238506,96649.0,96637.0,0.206959]
[1738705429926,0.10238506,96649.0,96627.0,0.01002558]
[1738705430383,0.10238506,96649.0,96638.0,0.155217]
[1738705430587,0.10238506,96649.0,96627.0,0.01102558]
[1738705430796,0.10238506,96649.0,96639.0,0.155215]
[1738705430998,0.10238506,96649.0,96631.0,0.206972]
[1738705431295,0.10238506,96649.0,96638.0,0.155217]
[1738705431450,0.10238506,96649.0,96631.0,0.007276]
[1738705431795,0.08246785,96652.0,96642.0,0.155211]
[1738705432004,0.004,96649.0,96631.0,0.007276]
[1738705432296,0.004,96649.0,96647.0,0.155202]
[1738705432452,0.007,96649.0,96633.0,0.206968]
[1738705432655,0.007,96649.0,96637.0,0.206959]
[1738705432973,0.10393714,96648.0,96631.0,0.007276]
[1738705433557,0.25760606,96637.0,96631.0,0.007276]
[1738705433756,0.155227,96633.0,96631.0,0.007276]
[1738705434187,0.10238506,96637.0,96631.0,0.007276]
[1738705434384,0.10238506,96637.0,96631.0,0.008276]
[1738705434741,0.155227,96633.0,96631.0,0.010276]
[1738705434944,0.10238506,96632.0,96631.0,0.007276]
[1738705435347,0.1039375,96632.0,96631.0,0.003]
[1738705435546,0.10238506,96632.0,96631.0,0.001]
[1738705435902,0.25761306,96632.0,96631.0,0.001]
[1738705436082,0.10238506,96632.0,96631.0,0.001]
[1738705436489,0.10238506,96632.0,96627.0,0.00185668]
[1738705436902,0.25761306,96632.0,96627.0,0.00185668]
[1738705437393,0.001,96632.0,96627.0,0.00185668]